[Event "Titled Tuesday Blitz January 11 2022"]
[White "Maghsoodloo, Parham"]
[Black "Nazaretyan, Tigran"]
[WhiteFideId "12539929"]
[BlackFideId "24162345"]
[WhiteElo "2630"]
[BlackElo "2192"]
[Result "1-0"]
[Round "02"]
[TimeControl "180+1"]
[Date "2022.01.11"]
[WhiteClock "0:00:06"]
[BlackClock "0:00:01"]

1. e4 {[%clk 0:03:00]}  c5 {[%clk 0:02:57]} 2. Nf3 {[%clk 0:03:01]}  Nc6 {[%clk 0:02:55]} 3. d4 {[%clk 0:03:01]}  cxd4 {[%clk 0:02:55]} 4. Nxd4 {[%clk 0:03:02]}  Nf6 {[%clk 0:02:54]} 5. Nc3 {[%clk 0:03:03]}  d6 {[%clk 0:02:52]} 6. Bg5 {[%clk 0:03:01]}  e6 {[%clk 0:02:51]} 7. Qd2 {[%clk 0:03:01]}  a6 {[%clk 0:02:51]} 8. O-O-O {[%clk 0:03:01]}  Bd7 {[%clk 0:02:50]} 9. f4 {[%clk 0:03:01]}  h6 {[%clk 0:02:49]} 10. Bxf6 {[%clk 0:02:57]}  Qxf6 {[%clk 0:02:48]} 11. e5 {[%clk 0:02:56]}  dxe5 {[%clk 0:02:47]} 12. Ndb5 {[%clk 0:02:53]}  Qd8 {[%clk 0:02:46]} 13. Nd6+ {[%clk 0:02:50]}  Bxd6 {[%clk 0:02:45]} 14. Qxd6 {[%clk 0:02:51]}  Qe7 {[%clk 0:02:41]} 15. Ne4 {[%clk 0:02:46]}  Qxd6 {[%clk 0:02:24]} 16. Nxd6+ {[%clk 0:02:47]}  Ke7 {[%clk 0:02:24]} 17. Nxf7 {[%clk 0:02:47]}  Rhf8 {[%clk 0:02:06]} 18. Nxe5 {[%clk 0:02:28]}  Nxe5 {[%clk 0:02:06]} 19. fxe5 {[%clk 0:02:29]}  Bc6 {[%clk 0:02:06]} 20. Rg1 {[%clk 0:02:27]}  Rf2 {[%clk 0:02:01]} 21. Bd3 {[%clk 0:02:21]}  g5 {[%clk 0:01:58]} 22. Rd2 {[%clk 0:02:12]}  Raf8 {[%clk 0:01:56]} 23. h4 {[%clk 0:02:03]}  Rxd2 {[%clk 0:01:54]} 24. Kxd2 {[%clk 0:01:59]}  Rf2+ {[%clk 0:01:54]} 25. Ke3 {[%clk 0:01:59]}  Rxg2 {[%clk 0:01:54]} 26. Rxg2 {[%clk 0:01:57]}  Bxg2 {[%clk 0:01:55]} 27. hxg5 {[%clk 0:01:58]}  hxg5 {[%clk 0:01:55]} 28. Be4 {[%clk 0:01:47]}  Bxe4 {[%clk 0:01:48]} 29. Kxe4 {[%clk 0:01:47]}  Kd7 {[%clk 0:01:49]} 30. c4 {[%clk 0:01:46]}  Kc6 {[%clk 0:01:48]} 31. b4 {[%clk 0:01:46]}  b5 {[%clk 0:01:32]} 32. c5 {[%clk 0:01:44]}  a5 {[%clk 0:01:33]} 33. a3 {[%clk 0:01:43]}  axb4 {[%clk 0:01:28]} 34. axb4 {[%clk 0:01:43]}  Kb7 {[%clk 0:01:27]} 35. Kf3 {[%clk 0:01:42]}  Kc6 {[%clk 0:01:27]} 36. Kg4 {[%clk 0:01:40]}  Kd5 {[%clk 0:01:28]} 37. Kxg5 {[%clk 0:01:40]}  Kxe5 {[%clk 0:01:28]} 38. Kg4 {[%clk 0:01:40]}  Kf6 {[%clk 0:01:18]} 39. Kf4 {[%clk 0:01:32]}  e5+ {[%clk 0:01:18]} 40. Ke3 {[%clk 0:01:32]}  Kf5 {[%clk 0:01:18]} 41. Kf3 {[%clk 0:01:32]}  e4+ {[%clk 0:01:18]} 42. Ke2 {[%clk 0:01:33]}  Ke5 {[%clk 0:01:18]} 43. Ke3 {[%clk 0:01:33]}  Kd5 {[%clk 0:01:18]} 44. Kf4 {[%clk 0:01:33]}  Kd4 {[%clk 0:01:13]} 45. c6 {[%clk 0:01:27]}  e3 {[%clk 0:01:14]} 46. c7 {[%clk 0:00:53]}  e2 {[%clk 0:01:13]} 47. c8=Q {[%clk 0:00:53]}  e1=Q {[%clk 0:01:13]} 48. Qc5+ {[%clk 0:00:48]}  Kd3 {[%clk 0:01:13]} 49. Qxb5+ {[%clk 0:00:47]}  Kc3 {[%clk 0:01:06]} 50. Qc5+ {[%clk 0:00:46]}  Kb3 {[%clk 0:01:03]} 51. b5 {[%clk 0:00:46]}  Qh4+ {[%clk 0:00:58]} 52. Ke5 {[%clk 0:00:38]}  Qg5+ {[%clk 0:00:58]} 53. Kd6 {[%clk 0:00:38]}  Qd8+ {[%clk 0:00:55]} 54. Kc6 {[%clk 0:00:29]}  Qc8+ {[%clk 0:00:54]} 55. Kb6 {[%clk 0:00:30]}  Qb8+ {[%clk 0:00:54]} 56. Ka6 {[%clk 0:00:30]}  Qa8+ {[%clk 0:00:51]} 57. Qa7 {[%clk 0:00:30]}  Qc8+ {[%clk 0:00:50]} 58. Qb7 {[%clk 0:00:30]}  Qc4 {[%clk 0:00:49]} 59. Qc6 {[%clk 0:00:29]}  Qe2 {[%clk 0:00:41]} 60. Kb7 {[%clk 0:00:21]}  Qe7+ {[%clk 0:00:40]} 61. Ka6 {[%clk 0:00:20]}  Qe2 {[%clk 0:00:40]} 62. Qd5+ {[%clk 0:00:19]}  Kb4 {[%clk 0:00:37]} 63. Qd4+ {[%clk 0:00:19]}  Kb3 {[%clk 0:00:36]} 64. Ka5 {[%clk 0:00:19]}  Qa2+ {[%clk 0:00:30]} 65. Kb6 {[%clk 0:00:16]}  Qe2 {[%clk 0:00:29]} 66. Ka7 {[%clk 0:00:07]}  Qe7+ {[%clk 0:00:29]} 67. Ka6 {[%clk 0:00:05]}  Qa3+ {[%clk 0:00:28]} 68. Kb6 {[%clk 0:00:06]}  Qa8 {[%clk 0:00:22]} 69. Qd6 {[%clk 0:00:05]}  Qe4 {[%clk 0:00:18]} 70. Kc7 {[%clk 0:00:02]}  Qh7+ {[%clk 0:00:17]} 71. Kc6 {[%clk 0:00:02]}  Qc2+ {[%clk 0:00:13]} 72. Qc5 {[%clk 0:00:03]}  Qg6+ {[%clk 0:00:12]} 73. Qd6 {[%clk 0:00:03]}  Qc2+ {[%clk 0:00:12]} 74. Kb7 {[%clk 0:00:03]}  Qe4+ {[%clk 0:00:11]} 75. Qc6 {[%clk 0:00:03]}  Qe7+ {[%clk 0:00:11]} 76. Ka6 {[%clk 0:00:03]}  Qa3+ {[%clk 0:00:11]} 77. Kb6 {[%clk 0:00:03]}  Qe7 {[%clk 0:00:10]} 78. Qc7 {[%clk 0:00:03]}  Qe3+ {[%clk 0:00:10]} 79. Kb7 {[%clk 0:00:03]}  Qe4+ {[%clk 0:00:09]} 80. Ka7 {[%clk 0:00:04]}  Qa4+ {[%clk 0:00:09]} 81. Kb6 {[%clk 0:00:04]}  Qd4+ {[%clk 0:00:09]} 82. Qc5 {[%clk 0:00:05]}  Qd8+ {[%clk 0:00:09]} 83. Ka7 {[%clk 0:00:05]}  Qd7+ {[%clk 0:00:09]} 84. Ka6 {[%clk 0:00:05]}  Qe6+ {[%clk 0:00:08]} 85. b6 {[%clk 0:00:05]}  Qe2+ {[%clk 0:00:07]} 86. Qb5+ {[%clk 0:00:05]}  Qxb5+ {[%clk 0:00:01]} 87. Kxb5 {[%clk 0:00:06]} 1-0


[Site "https://www.chess.com"]

[Event "Titled Tuesday Blitz January 11 2022"]
[White "Maltsevskaya, Aleksandra"]
[Black "Triapishko, Alexandr"]
[WhiteFideId "24174041"]
[BlackFideId "14122286"]
[WhiteElo "2283"]
[BlackElo "2479"]
[Result "1-0"]
[Round "02"]
[TimeControl "180+1"]
[Date "2022.01.11"]
[WhiteClock "0:01:21"]
[BlackClock "0:00:02"]

1. e4 {[%clk 0:03:00]}  e5 {[%clk 0:02:53]} 2. Nf3 {[%clk 0:02:58]}  Nc6 {[%clk 0:02:53]} 3. Bb5 {[%clk 0:02:57]}  Nge7 {[%clk 0:02:52]} 4. c3 {[%clk 0:02:55]}  d5 {[%clk 0:02:47]} 5. Qe2 {[%clk 0:02:47]}  dxe4 {[%clk 0:02:35]} 6. Nxe5 {[%clk 0:02:42]}  Be6 {[%clk 0:02:31]} 7. O-O {[%clk 0:02:36]}  Qd5 {[%clk 0:02:13]} 8. Nxc6 {[%clk 0:02:31]}  bxc6 {[%clk 0:01:42]} 9. Ba4 {[%clk 0:02:27]}  Qc4 {[%clk 0:01:08]} 10. Qd1 {[%clk 0:02:22]}  Ng6 {[%clk 0:00:28]} 11. d4 {[%clk 0:01:45]}  exd3 {[%clk 0:00:23]} 12. Bb3 {[%clk 0:01:41]}  Qb5 {[%clk 0:00:20]} 13. Bxe6 {[%clk 0:01:38]}  fxe6 {[%clk 0:00:21]} 14. Re1 {[%clk 0:01:35]}  O-O-O {[%clk 0:00:19]} 15. Na3 {[%clk 0:01:29]}  Bxa3 {[%clk 0:00:15]} 16. bxa3 {[%clk 0:01:29]}  Rd6 {[%clk 0:00:06]} 17. Be3 {[%clk 0:01:29]}  Rhd8 {[%clk 0:00:04]} 18. Rb1 {[%clk 0:01:30]}  Qa6 {[%clk 0:00:04]} 19. Qb3 {[%clk 0:01:28]}  Kd7 {[%clk 0:00:03]} 20. c4 {[%clk 0:01:23]}  Ne5 {[%clk 0:00:02]} 21. Bc5 {[%clk 0:01:22]}  Nxc4 {[%clk 0:00:02]} 22. Bxd6 {[%clk 0:01:22]}  Nxd6 {[%clk 0:00:02]} 23. Qxe6# {[%clk 0:01:21]} 1-0


[Site "https://www.chess.com"]

[Event "Titled Tuesday Blitz January 11 2022"]
[White "Muradli, Mahammad"]
[Black "Ceres, Dragos"]
[WhiteFideId "13409301"]
[BlackFideId "13905864"]
[WhiteElo "2645"]
[BlackElo "2072"]
[Result "0-1"]
[Round "02"]
[TimeControl "180+1"]
[Date "2022.01.11"]
[WhiteClock "0:00:02"]
[BlackClock "0:00:09"]

1. c4 {[%clk 0:03:00]}  e5 {[%clk 0:02:58]} 2. d3 {[%clk 0:03:00]}  Nf6 {[%clk 0:02:58]} 3. Nf3 {[%clk 0:03:01]}  Nc6 {[%clk 0:02:58]} 4. a3 {[%clk 0:03:01]}  a5 {[%clk 0:02:57]} 5. Nc3 {[%clk 0:03:01]}  Bc5 {[%clk 0:02:56]} 6. Bg5 {[%clk 0:02:58]}  h6 {[%clk 0:02:54]} 7. Bh4 {[%clk 0:02:59]}  g5 {[%clk 0:02:46]} 8. Bg3 {[%clk 0:02:58]}  d6 {[%clk 0:02:46]} 9. e3 {[%clk 0:02:59]}  Ba7 {[%clk 0:02:36]} 10. Be2 {[%clk 0:02:58]}  Bf5 {[%clk 0:02:24]} 11. d4 {[%clk 0:02:36]}  exd4 {[%clk 0:01:56]} 12. Nxd4 {[%clk 0:02:37]}  Nxd4 {[%clk 0:01:52]} 13. exd4 {[%clk 0:02:38]}  O-O {[%clk 0:01:41]} 14. O-O {[%clk 0:02:28]}  Ne4 {[%clk 0:01:36]} 15. Nd5 {[%clk 0:02:16]}  c6 {[%clk 0:01:29]} 16. Ne3 {[%clk 0:02:14]}  Bg6 {[%clk 0:01:29]} 17. Bd3 {[%clk 0:01:55]}  Re8 {[%clk 0:01:24]} 18. Bc2 {[%clk 0:01:36]}  f5 {[%clk 0:01:10]} 19. Qf3 {[%clk 0:00:33]}  f4 {[%clk 0:00:49]} 20. Bxf4 {[%clk 0:00:17]}  gxf4 {[%clk 0:00:48]} 21. Qxf4 {[%clk 0:00:18]}  Qg5 {[%clk 0:00:36]} 22. Qxg5 {[%clk 0:00:16]}  hxg5 {[%clk 0:00:37]} 23. Rad1 {[%clk 0:00:17]}  Kg7 {[%clk 0:00:36]} 24. Rfe1 {[%clk 0:00:13]}  Nf6 {[%clk 0:00:29]} 25. Bxg6 {[%clk 0:00:12]}  Kxg6 {[%clk 0:00:29]} 26. g3 {[%clk 0:00:13]}  Re4 {[%clk 0:00:29]} 27. Nc2 {[%clk 0:00:08]}  Rae8 {[%clk 0:00:28]} 28. Rxe4 {[%clk 0:00:07]}  Rxe4 {[%clk 0:00:28]} 29. Kf1 {[%clk 0:00:08]}  g4 {[%clk 0:00:26]} 30. b4 {[%clk 0:00:05]}  a4 {[%clk 0:00:23]} 31. Rd2 {[%clk 0:00:03]}  Re7 {[%clk 0:00:14]} 32. c5 {[%clk 0:00:03]}  d5 {[%clk 0:00:13]} 33. Ne3 {[%clk 0:00:03]}  Bb8 {[%clk 0:00:12]} 34. Rd3 {[%clk 0:00:04]}  Kg5 {[%clk 0:00:12]} 35. Kg2 {[%clk 0:00:04]}  Ne4 {[%clk 0:00:12]} 36. Rd1 {[%clk 0:00:04]}  Rf7 {[%clk 0:00:12]} 37. Rf1 {[%clk 0:00:04]}  Bc7 {[%clk 0:00:12]} 38. Nd1 {[%clk 0:00:03]}  Nd2 {[%clk 0:00:11]} 39. Re1 {[%clk 0:00:04]}  Ne4 {[%clk 0:00:10]} 40. Re2 {[%clk 0:00:03]}  Bd8 {[%clk 0:00:10]} 41. Nb2 {[%clk 0:00:03]}  Bf6 {[%clk 0:00:10]} 42. Nxa4 {[%clk 0:00:02]}  Bxd4 {[%clk 0:00:10]} 43. Nb6 {[%clk 0:00:02]}  Nxf2 {[%clk 0:00:10]} 44. a4 {[%clk 0:00:02]}  Nh3 {[%clk 0:00:10]} 45. b5 {[%clk 0:00:02]}  Rf3 {[%clk 0:00:10]} 46. bxc6 {[%clk 0:00:02]}  bxc6 {[%clk 0:00:10]} 47. Nd7 {[%clk 0:00:03]}  Ra3 {[%clk 0:00:10]} 48. Nf8 {[%clk 0:00:03]}  Ra1 {[%clk 0:00:08]} 49. Ne6+ {[%clk 0:00:02]}  Kf6 {[%clk 0:00:09]} 0-1


[Site "https://www.chess.com"]

[Event "Titled Tuesday Blitz January 11 2022"]
[White "Nozdrachev, Leonid"]
[Black "Onyshchuk, Volodymyr"]
[WhiteFideId "24113433"]
[BlackFideId "14114038"]
[WhiteElo "2124"]
[BlackElo "2642"]
[Result "0-1"]
[Round "02"]
[TimeControl "180+1"]
[Date "2022.01.11"]
[WhiteClock "0:00:04"]
[BlackClock "0:00:10"]

1. e4 {[%clk 0:03:00]}  g6 {[%clk 0:03:00]} 2. d4 {[%clk 0:03:00]}  Bg7 {[%clk 0:03:00]} 3. Nc3 {[%clk 0:03:00]}  d6 {[%clk 0:03:01]} 4. Be3 {[%clk 0:02:58]}  a6 {[%clk 0:03:01]} 5. h4 {[%clk 0:02:55]}  h6 {[%clk 0:03:00]} 6. h5 {[%clk 0:02:47]}  g5 {[%clk 0:03:00]} 7. Be2 {[%clk 0:02:46]}  Nd7 {[%clk 0:02:53]} 8. f4 {[%clk 0:02:41]}  gxf4 {[%clk 0:02:51]} 9. Bxf4 {[%clk 0:02:42]}  c5 {[%clk 0:02:49]} 10. dxc5 {[%clk 0:02:38]}  Nxc5 {[%clk 0:02:49]} 11. Qd2 {[%clk 0:02:32]}  Qb6 {[%clk 0:02:30]} 12. Rb1 {[%clk 0:02:03]}  Nf6 {[%clk 0:02:20]} 13. Bf3 {[%clk 0:02:00]}  Be6 {[%clk 0:02:13]} 14. Nge2 {[%clk 0:01:59]}  Ncd7 {[%clk 0:01:38]} 15. Be3 {[%clk 0:01:54]}  Qc7 {[%clk 0:01:36]} 16. O-O {[%clk 0:01:48]}  Ne5 {[%clk 0:01:36]} 17. b3 {[%clk 0:01:36]}  Rc8 {[%clk 0:01:27]} 18. Bd4 {[%clk 0:01:31]}  Rg8 {[%clk 0:01:21]} 19. Rbc1 {[%clk 0:01:18]}  Bf8 {[%clk 0:01:17]} 20. Nd5 {[%clk 0:01:06]}  Bxd5 {[%clk 0:01:17]} 21. exd5 {[%clk 0:01:07]}  Rg5 {[%clk 0:01:15]} 22. c4 {[%clk 0:01:00]}  Qd7 {[%clk 0:01:14]} 23. Nf4 {[%clk 0:00:53]}  Bg7 {[%clk 0:01:10]} 24. Rce1 {[%clk 0:00:49]}  Kf8 {[%clk 0:01:05]} 25. Bxe5 {[%clk 0:00:45]}  Rxe5 {[%clk 0:01:00]} 26. Rxe5 {[%clk 0:00:43]}  dxe5 {[%clk 0:01:00]} 27. Nh3 {[%clk 0:00:32]}  e4 {[%clk 0:01:00]} 28. Be2 {[%clk 0:00:29]}  Qd6 {[%clk 0:01:00]} 29. Qf4 {[%clk 0:00:18]}  Qa3 {[%clk 0:01:00]} 30. Qf5 {[%clk 0:00:13]}  Rd8 {[%clk 0:00:59]} 31. Nf4 {[%clk 0:00:12]}  Qxa2 {[%clk 0:00:54]} 32. g4 {[%clk 0:00:10]}  Qxb3 {[%clk 0:00:49]} 33. Kg2 {[%clk 0:00:10]}  Qb6 {[%clk 0:00:18]} 34. g5 {[%clk 0:00:09]}  hxg5 {[%clk 0:00:17]} 35. Qxg5 {[%clk 0:00:10]}  Rd6 {[%clk 0:00:11]} 36. h6 {[%clk 0:00:07]}  Bh8 {[%clk 0:00:11]} 37. Nh5 {[%clk 0:00:05]}  Ke8 {[%clk 0:00:11]} 38. Ng7+ {[%clk 0:00:04]}  Bxg7 {[%clk 0:00:10]} 39. hxg7 {[%clk 0:00:05]}  Ng8 {[%clk 0:00:10]} 40. Bh5 {[%clk 0:00:05]}  Rf6 {[%clk 0:00:10]} 41. Qg4 {[%clk 0:00:03]}  Qb2+ {[%clk 0:00:10]} 42. Kg1 {[%clk 0:00:02]}  Qd4+ {[%clk 0:00:10]} 43. Kg2 {[%clk 0:00:02]}  Qd2+ {[%clk 0:00:10]} 44. Kg3 {[%clk 0:00:03]}  Qe3+ {[%clk 0:00:10]} 45. Kg2 {[%clk 0:00:03]}  Qd2+ {[%clk 0:00:09]} 46. Kg3 {[%clk 0:00:03]}  Qc3+ {[%clk 0:00:10]} 47. Kg2 {[%clk 0:00:03]}  Kd8 {[%clk 0:00:10]} 48. Rf5 {[%clk 0:00:02]}  Qd2+ {[%clk 0:00:10]} 49. Kg3 {[%clk 0:00:03]}  Qe3+ {[%clk 0:00:10]} 50. Kg2 {[%clk 0:00:03]}  Qd2+ {[%clk 0:00:09]} 51. Kg3 {[%clk 0:00:03]}  Qd3+ {[%clk 0:00:08]} 52. Kg2 {[%clk 0:00:03]}  Qc2+ {[%clk 0:00:05]} 53. Kg3 {[%clk 0:00:03]}  Rxf5 {[%clk 0:00:04]} 54. Qxf5 {[%clk 0:00:04]}  Qc3+ {[%clk 0:00:05]} 55. Kg2 {[%clk 0:00:04]}  Qxg7+ {[%clk 0:00:06]} 56. Kf1 {[%clk 0:00:03]}  Qf6 {[%clk 0:00:06]} 57. Bg4 {[%clk 0:00:03]}  Qxf5+ {[%clk 0:00:05]} 58. Bxf5 {[%clk 0:00:04]}  Nf6 {[%clk 0:00:06]} 59. Ke2 {[%clk 0:00:04]}  Kc7 {[%clk 0:00:06]} 60. Ke3 {[%clk 0:00:05]}  Kd6 {[%clk 0:00:06]} 61. Kd4 {[%clk 0:00:06]}  e5+ {[%clk 0:00:06]} 62. dxe6 {[%clk 0:00:05]}  fxe6 {[%clk 0:00:07]} 63. Bg6 {[%clk 0:00:05]}  e5+ {[%clk 0:00:07]} 64. Ke3 {[%clk 0:00:05]}  Kc5 {[%clk 0:00:07]} 65. Bf7 {[%clk 0:00:04]}  b6 {[%clk 0:00:08]} 66. Be6 {[%clk 0:00:05]}  a5 {[%clk 0:00:08]} 67. Bf7 {[%clk 0:00:04]}  a4 {[%clk 0:00:09]} 68. Kd2 {[%clk 0:00:04]}  a3 {[%clk 0:00:09]} 69. Kc3 {[%clk 0:00:05]}  e3 {[%clk 0:00:10]} 70. Be6 {[%clk 0:00:04]}  e2 {[%clk 0:00:10]} 0-1


[Site "https://www.chess.com"]

[Event "Titled Tuesday Blitz January 11 2022"]
[White "Romanchuk, Viktor"]
[Black "Vokhidov, Shamsiddin"]
[WhiteFideId "14109271"]
[BlackFideId "14204223"]
[WhiteElo "2242"]
[BlackElo "2611"]
[Result "1/2-1/2"]
[Round "02"]
[TimeControl "180+1"]
[Date "2022.01.11"]
[WhiteClock "0:00:23"]
[BlackClock "0:01:06"]

1. d4 {[%clk 0:03:00]}  Nf6 {[%clk 0:03:00]} 2. c4 {[%clk 0:03:00]}  e6 {[%clk 0:03:00]} 3. Nc3 {[%clk 0:03:00]}  Bb4 {[%clk 0:03:00]} 4. e3 {[%clk 0:03:00]}  O-O {[%clk 0:03:00]} 5. Ne2 {[%clk 0:03:01]}  d5 {[%clk 0:03:00]} 6. a3 {[%clk 0:03:01]}  Be7 {[%clk 0:03:00]} 7. cxd5 {[%clk 0:03:01]}  exd5 {[%clk 0:03:01]} 8. Nf4 {[%clk 0:03:01]}  c6 {[%clk 0:03:00]} 9. Bd3 {[%clk 0:03:00]}  Bd6 {[%clk 0:03:00]} 10. O-O {[%clk 0:03:01]}  Re8 {[%clk 0:03:01]} 11. f3 {[%clk 0:03:01]}  c5 {[%clk 0:03:00]} 12. Nfxd5 {[%clk 0:02:40]}  Nxd5 {[%clk 0:02:59]} 13. Nxd5 {[%clk 0:02:41]}  cxd4 {[%clk 0:02:53]} 14. exd4 {[%clk 0:02:29]}  Bxh2+ {[%clk 0:02:52]} 15. Kxh2 {[%clk 0:02:29]}  Qxd5 {[%clk 0:02:53]} 16. Be4 {[%clk 0:02:28]}  Qd6+ {[%clk 0:02:35]} 17. Kg1 {[%clk 0:02:24]}  Nc6 {[%clk 0:02:33]} 18. d5 {[%clk 0:02:22]}  Ne7 {[%clk 0:02:33]} 19. Bg5 {[%clk 0:01:58]}  h6 {[%clk 0:02:29]} 20. Bh4 {[%clk 0:01:56]}  Nf5 {[%clk 0:02:25]} 21. Bf2 {[%clk 0:01:54]}  Bd7 {[%clk 0:02:20]} 22. Re1 {[%clk 0:01:36]}  Qf6 {[%clk 0:02:20]} 23. Bxf5 {[%clk 0:01:28]}  Qxf5 {[%clk 0:02:19]} 24. Rxe8+ {[%clk 0:01:20]}  Bxe8 {[%clk 0:02:19]} 25. Qd4 {[%clk 0:01:17]}  Bd7 {[%clk 0:02:12]} 26. Re1 {[%clk 0:01:15]}  a6 {[%clk 0:02:10]} 27. Qe5 {[%clk 0:01:14]}  Qd3 {[%clk 0:01:59]} 28. Qe4 {[%clk 0:01:09]}  Qd2 {[%clk 0:01:55]} 29. Re2 {[%clk 0:01:01]}  Qc1+ {[%clk 0:01:53]} 30. Kh2 {[%clk 0:01:00]}  Re8 {[%clk 0:01:51]} 31. Qc2 {[%clk 0:00:58]}  Qf4+ {[%clk 0:01:47]} 32. Bg3 {[%clk 0:00:58]}  Rxe2 {[%clk 0:01:42]} 33. Qxe2 {[%clk 0:00:58]}  Qd4 {[%clk 0:01:38]} 34. Qe5 {[%clk 0:00:57]}  Qxe5 {[%clk 0:01:13]} 35. Bxe5 {[%clk 0:00:58]}  f6 {[%clk 0:01:14]} 36. Bc3 {[%clk 0:00:54]}  Kf7 {[%clk 0:01:14]} 37. g4 {[%clk 0:00:50]}  Bb5 {[%clk 0:01:14]} 38. Kg3 {[%clk 0:00:48]}  Bc4 {[%clk 0:01:14]} 39. d6 {[%clk 0:00:48]}  Ke6 {[%clk 0:01:15]} 40. Bb4 {[%clk 0:00:48]}  b6 {[%clk 0:01:15]} 41. d7 {[%clk 0:00:48]}  Kxd7 {[%clk 0:01:13]} 42. Bf8 {[%clk 0:00:47]}  g5 {[%clk 0:01:09]} 43. f4 {[%clk 0:00:40]}  Ke6 {[%clk 0:01:08]} 44. Bxh6 {[%clk 0:00:33]}  Kf7 {[%clk 0:01:08]} 45. fxg5 {[%clk 0:00:33]}  Kg6 {[%clk 0:01:08]} 46. Bf8 {[%clk 0:00:33]}  Kxg5 {[%clk 0:01:08]} 47. Bb4 {[%clk 0:00:30]}  Be6 {[%clk 0:01:07]} 48. Bd2+ {[%clk 0:00:30]}  Kg6 {[%clk 0:01:07]} 49. Kf4 {[%clk 0:00:30]}  b5 {[%clk 0:01:07]} 50. Bc3 {[%clk 0:00:26]}  Bd7 {[%clk 0:01:06]} 51. Bd4 {[%clk 0:00:23]} 1/2-1/2


[Site "https://www.chess.com"]

[Event "Titled Tuesday Blitz January 11 2022"]
[White "Rozhkov, Viacheslav"]
[Black "Zakhartsov, Vladimir"]
[WhiteFideId "4181484"]
[BlackFideId "4145097"]
[WhiteElo "2324"]
[BlackElo "2432"]
[Result "1/2-1/2"]
[Round "02"]
[TimeControl "180+1"]
[Date "2022.01.11"]
[WhiteClock "0:00:06"]
[BlackClock "0:00:08"]

1. e4 {[%clk 0:03:00]}  c5 {[%clk 0:03:00]} 2. Nf3 {[%clk 0:03:00]}  Nc6 {[%clk 0:03:00]} 3. d4 {[%clk 0:03:00]}  cxd4 {[%clk 0:03:00]} 4. Nxd4 {[%clk 0:03:00]}  g6 {[%clk 0:03:00]} 5. Nc3 {[%clk 0:03:00]}  Bg7 {[%clk 0:03:00]} 6. Be3 {[%clk 0:02:59]}  Nf6 {[%clk 0:03:00]} 7. Nxc6 {[%clk 0:02:59]}  bxc6 {[%clk 0:03:00]} 8. e5 {[%clk 0:02:59]}  Ng8 {[%clk 0:03:01]} 9. f4 {[%clk 0:02:59]}  f6 {[%clk 0:03:00]} 10. e6 {[%clk 0:02:57]}  Nh6 {[%clk 0:02:55]} 11. exd7+ {[%clk 0:02:45]}  Qxd7 {[%clk 0:02:56]} 12. Bc4 {[%clk 0:02:43]}  Nf5 {[%clk 0:02:50]} 13. Bc5 {[%clk 0:02:35]}  Nd6 {[%clk 0:02:28]} 14. Bb3 {[%clk 0:02:33]}  Ba6 {[%clk 0:02:14]} 15. Qf3 {[%clk 0:02:16]}  Nc4 {[%clk 0:02:09]} 16. Bxc4 {[%clk 0:01:09]}  Bxc4 {[%clk 0:02:08]} 17. Rd1 {[%clk 0:01:09]}  Qb7 {[%clk 0:01:57]} 18. Kf2 {[%clk 0:00:58]}  O-O {[%clk 0:01:56]} 19. b3 {[%clk 0:00:44]}  Bf7 {[%clk 0:01:53]} 20. Rhe1 {[%clk 0:00:38]}  Rfe8 {[%clk 0:01:53]} 21. f5 {[%clk 0:00:32]}  gxf5 {[%clk 0:01:50]} 22. Qxf5 {[%clk 0:00:31]}  Bg6 {[%clk 0:01:43]} 23. Qe6+ {[%clk 0:00:29]}  Kh8 {[%clk 0:01:42]} 24. Rd7 {[%clk 0:00:28]}  Qb8 {[%clk 0:01:35]} 25. Kg1 {[%clk 0:00:23]}  Qf4 {[%clk 0:01:28]} 26. Rxe7 {[%clk 0:00:21]}  Rxe7 {[%clk 0:01:24]} 27. Bxe7 {[%clk 0:00:19]}  Re8 {[%clk 0:01:17]} 28. Qd7 {[%clk 0:00:18]}  Qf5 {[%clk 0:00:57]} 29. Qxf5 {[%clk 0:00:14]}  Bxf5 {[%clk 0:00:58]} 30. Rf1 {[%clk 0:00:14]}  Bxc2 {[%clk 0:00:37]} 31. Bxf6 {[%clk 0:00:14]}  Bd3 {[%clk 0:00:38]} 32. Bxg7+ {[%clk 0:00:14]}  Kxg7 {[%clk 0:00:39]} 33. Rd1 {[%clk 0:00:15]}  Bf5 {[%clk 0:00:37]} 34. Rd6 {[%clk 0:00:15]}  Rc8 {[%clk 0:00:29]} 35. h3 {[%clk 0:00:15]}  Rc7 {[%clk 0:00:28]} 36. g4 {[%clk 0:00:15]}  Bg6 {[%clk 0:00:28]} 37. Kf2 {[%clk 0:00:15]}  Bf7 {[%clk 0:00:27]} 38. Ke3 {[%clk 0:00:15]}  c5 {[%clk 0:00:28]} 39. Nd5 {[%clk 0:00:14]}  Rc8 {[%clk 0:00:16]} 40. Nf4 {[%clk 0:00:13]}  c4 {[%clk 0:00:15]} 41. bxc4 {[%clk 0:00:13]}  Rxc4 {[%clk 0:00:15]} 42. Ra6 {[%clk 0:00:10]}  Rc3+ {[%clk 0:00:15]} 43. Ke4 {[%clk 0:00:10]}  Rc2 {[%clk 0:00:14]} 44. Rxa7 {[%clk 0:00:09]}  Kf6 {[%clk 0:00:13]} 45. Nd5+ {[%clk 0:00:09]}  Kg6 {[%clk 0:00:14]} 46. Nf4+ {[%clk 0:00:09]}  Kf6 {[%clk 0:00:14]} 47. h4 {[%clk 0:00:10]}  Bxa2 {[%clk 0:00:10]} 48. Rxh7 {[%clk 0:00:07]}  Rc4+ {[%clk 0:00:08]} 49. Ke3 {[%clk 0:00:07]}  Rc3+ {[%clk 0:00:08]} 50. Kd4 {[%clk 0:00:07]}  Rc4+ {[%clk 0:00:09]} 51. Ke3 {[%clk 0:00:07]}  Rc3+ {[%clk 0:00:09]} 52. Kf2 {[%clk 0:00:07]}  Rc4 {[%clk 0:00:08]} 53. Nd3 {[%clk 0:00:05]}  Rxg4 {[%clk 0:00:07]} 54. Rh6+ {[%clk 0:00:04]}  Kg7 {[%clk 0:00:07]} 55. Rd6 {[%clk 0:00:05]}  Rxh4 {[%clk 0:00:07]} 56. Ke3 {[%clk 0:00:06]}  Bf7 {[%clk 0:00:06]} 57. Ne5 {[%clk 0:00:05]}  Be8 {[%clk 0:00:06]} 58. Re6 {[%clk 0:00:05]}  Kf8 {[%clk 0:00:06]} 59. Ng6+ {[%clk 0:00:05]}  Bxg6 {[%clk 0:00:06]} 60. Rxg6 {[%clk 0:00:05]}  Rh7 {[%clk 0:00:06]} 61. Rg3 {[%clk 0:00:05]}  Rf7 {[%clk 0:00:07]} 62. Rf3 {[%clk 0:00:06]}  Rxf3+ {[%clk 0:00:08]} 63. Kxf3 {[%clk 0:00:06]} 1/2-1/2


[Site "https://www.chess.com"]